Workbook

Sheet HEJ
A1: Relatório Resumido da Execução Orçamentária e Financeira por Contrato de Gestão
A3: Mês/Ano: JANEIRO a MARÇO/2025
A5: Órgão Contratante: SECRETARIA DE ESTADO DA SAÚDE – SES/GO.
A6: CNPJ: 02.529.964/0001-57
A8: Organização Social Contratada : FUNDAÇÃO DE APOIO AO HOSPITAL DAS CLÍNICAS DA UNIVERSIDADE FEDERAL DE GOIÁS – FUNDAHC
A9: CNPJ: 02.918.347/0001-43
A11: Unidade Gerida: HOSPITAL ESTADUAL DE JATAÍ Dr. SERAFIM DE CARVALHO – HEJ
A13: Termo de Colaboração nº: 001/2020 - SES 8º Termo Aditivo; 17º Apostilamento (Jan25) / 18º Apostilamento (Fev25) / 19º Apostilamento (Mar25)
A14: Vigência do Contrato de Gestão: 8º Termo Aditivo: Início 30/11/2024 Término 30/10/2025
A16: Previsão de Repasse Mensal do Termo de Colaboração /ADITIVO - Custeio : R$ 10.721.616,10 Processo nº: 202000010023569
A17: Previsão de Repasse Mensal do Termo de Colaboração /ADITIVO - Investimentos : R$ Processo nº:
A18: Em reais
A19: Mês | C19: Comparativo do Estimado com a Execução Orçamentária e Financeira
B20: Valor Mensal Estimado no Contrato de Gestão | C20: 1. Valor Mensal Estimado no Contrato de Gestão - Custeio | D20: 2. Empenhado no mês | G20: 3. Liquidado no mês | J20: 4. Glosas Aplicadas | K20: 5. Montante pago no mês (informar o mês a que se refere, quando ocorrer repasses para mais de uma competência, inserir linha para cada mês) | O20: 6. Guia de Recolhimento (Devolução - informar na Nota Explicativa - Ex.: processo e mês a que se refere) | Q20: 7. Guias de Receita (Devolução de Recursos de Exercícios Anteriores) | R20: 8. Pagamentos (repasses – Restos a Pagar) (Informar na Nota Explicativa) | T20: 9. Pagamentos de Despesas de Exercícios Anteriores - DEA (informar a natureza, processo e outros esclarecimentos sobre o repasse efetuado para a contratada, objetivamente, na Nota Explicativa) | V20: 10. Total de Pagamentos no mês 10=5-(6+7) + 8 + 9
D21: Custeio | E21: Investimentos | F21: Repasses Adicionais (Ver Legenda) | G21: Custeio | H21: Investimentos | I21: Repasses Adicionais (Ver Legenda) | J21: Custeio | K21: Referência/Parcela | L21: Custeio | M21: Investimentos | N21: Repasses Adicionais (Ver Legenda) | O21: Custeio | P21: Investimentos | R21: Custeio | S21: Investimentos | T21: Custeio | U21: Investimento
A23: 2025-01-01 | B23: 11132548.27 | C23: 11132548.27 | D23: 68982198.11 | G23: 20743282.2 | J23: 76841.71 | K23: jan25 | L23: 10371616.1 | N23: 0 | R23: 272266.09 | T23: 435703.17 | V23: =L23+R23+T23 -> 11079585.36 | W23: =SUM(D23:F23) -> 68982198.11 | X23: =SUM(G23:I23) -> 20743282.2
A24: 2025-02-01 | B24: 11135284.45 | C24: 11135284.45 | D24: 410932.17 | G24: 10782548.27 | J24: 350000 | K24: fev25 | L24: 10371616.1 | V24: =L24+L25+L26 -> 11955447.8
A25: 2025-02-01 | K25: jan25 | L25: 410932.17
A26: 2025-02-01 | K26: mar25 | L26: 1172899.53
A27: 2025-03-01 | B27: 11112307.36 | C27: 11112307.36 | D27: 413668.35 | E27: 318600 | G27: 11058442.74 | H27: 318600 | J27: 350000 | K27: jan25 | L27: 273158.29 | M27: 318600 | V27: =L27+L28+L29+L30+M27 -> 11377042.74
A28: 2025-03-01 | K28: fev25 | L28: 413668.35
A29: 2025-03-01 | K29: mar25 | L29: 9198716.57
A30: 2025-03-01 | K30: abr25 | L30: 1172899.53
B31: =SUM(B23:B30) -> 33380140.08 | C31: =SUM(C23:C30) -> 33380140.08 | D31: =SUM(D23:D30) -> 69806798.63 | E31: 318600 | F31: =SUM(F23:F23) -> 0 | G31: =SUM(G23:G30) -> 42584273.21 | H31: 318600 | I31: =SUM(I23:I23) -> 0 | J31: =SUM(J23:J30) -> 776841.71 | K31: =SUM(K23:K23) -> 0 | L31: =SUM(L23:L30) -> 33385506.64 | M31: 318600 | N31: =SUM(N23:N23) -> 0 | O31: =SUM(O23:O23) -> 0 | P31: =SUM(P23:P23) -> 0 | Q31: =SUM(Q23:Q23) -> 0 | R31: =SUM(R23:R23) -> 272266.09 | S31: =SUM(S23:S23) -> 0 | T31: =SUM(T23:T23) -> 435703.17 | U31: =SUM(U23:U23) -> 0 | V31: =SUM(V23:V30) -> 34412075.9 | W31: =SUM(#REF!) ->  | X31: =SUM(#REF!) -> 
A33: Legenda: Repasses Adicionais - Valores adicionais ao pactuado no Contrato de Gestão - Despesas prevista Contratualmente - Executadas conforme solicitadas pela Organização Social no decorrer da vigência :
A34: Descrição
A36: Ressarcimentos (Rescisões Trabalhista, Serviço Hospitalar e Ambulatorial, Leitos Extras, Material Órtese e Prótese ( OPME e Outros ).
A37: Mandados Judiciais .
A38: Repasse Via Regularização de Despesas.
A39: Encontro de Contas Final do Contrato.
A40: Outros.
A42: Detalhamento - Glosas
A43: Descrição | F43: Valor R$ | G43: Natureza da Despesa | H43: Processo | I43: Competência do DESPESA (mês/ano) | J43: Período da APLICAÇÃO da Glosa (mês/ano)- | K43: Área Responsável
A44: Glosa Energia elétrica e imposto de renda da energia. | F44: 76841.71 | G44: 3.3.90.39.04 | H44: 201700010019675 | I44: 2025-01-01 | J44: 2025-03-01 | K44: SES/CGCC / GAAL-11410 | L44: =comentariocelula(F44) -> 
A45: Valor provisionado para ajuste posterior | F45: 350000 | G45: 3.3.50.85.02 | H45: 202000010023569 | I45: 2025-02-01 | J45: 2025-02-01 | K45: SES/CGC/SUPECC-19837
A46: Valor provisionado para ajuste posterior | F46: 350000 | G46: 3.3.50.85.02 | H46: 202000010023569 | I46: 2025-03-01 | J46: 2025-03-01 | K46: SES/CGC/SUPECC-19837
A47: Total Geral | F47: =SUM(F44:F46) -> 776841.71
A50: Nota Explicativa:
A51: Valor Estimado no Contrato de Gestão = Custeio R$ 10.721.616,10 + R$ 410.932,17 17º Apostilamento JAN25 / R$ 413.668,35 18º Apostilamento FEV25 / R$ 390.691,26 19º Apostilamento MAR/25 . 1. Valor Mensal Estimado no Contrato de Gestão - Custeio = Custeio R$ 10.721.616,10 + R$ 410.932,17 17º Apostilamento JAN25 / R$ 413.668,35 18º Apostilamento FEV25 / R$ 390.691,26 19º Apostilamento MAR/25 . 3. Valor informado pela área técnica – GEFIN SEI Nº 202500010016855. 4. Valor de energia elétrica +IR glosado conforme Solicitação de Pagamento : JAN25 parcial SEI Nº 69062290 ; JAN/25 consolidado SEI Nº 71121130 e Valores Provisionados conforme Solicitação de Liquidação e Pagamento FEV/25 parcial SEI Nº 69922294 ; MAR/25 parcial SEI Nº 70898464;
A52: Conforme diretrizes descritas no Despacho 2688 (SEI Nº 65101374), Processo SEI Nº 202400010067105, o valor dos Servidores cedidos, Auxílio Moradia, Bolsa de Residência médica e Gratificação de Servidores Estatutários serão apenas de caráter informativo. Informamos que o Termo de Colaboração nº: 001/2020 - SES 8º Termo Aditivo não possui servidores cedidos e nem programa de residência.
A53: 8. Pagamentos (repasses – Restos a Pagar) - Repasse referente ao Custeio valor total R$ 272.266,09, sendo: Referência: dezembro/2024 Ordem de Pagamento 2024.2850.061.00128.003...........R$ 217.453,22 Custeio consolidado Quitado em 10/01/25 SEI Nº 71294751 Referência: dezembro/2024 Ordem de Pagamento 2024.2850.061.00128.004...........R$ 54.812,87 Fundo Rescisório Quitado em 10/01/25 SEI Nº 71294751
A54: 9. Pagamentos de Despesas de Exercícios Anteriores - DEA 16º Apostilamento: Piso Nacional de Enfermagem - Referência dezembro/24 Ordem de Pagamento 2025.2850.070.0020.001 ........R$ 435.703,17 Quitada em 31/01/25 Siofinet
A58: Demonstrativo de investimento repassados no período de janeiro e fevereiro/2025
A59: Processo | C59: Data de Pagto | D59: Dot.Emp.Op | F59: Grupo | G59: Fonte | H59: Natureza | I59: Observação | K59: Valor Pago
A60: 202500010004909 | C60: 18/03/25 SEI 72028325 | D60: 2025.2850.161.00082.001 | F60: 4 | G60: 15000100 | H60: 4.4.50.42.05 | I60: Aquisição de 02(dois) Aparelhos de Ultrassom Portátil | K60: 318600
A63: Total Geral HEJ | K63: =SUM(K60:K62) -> 318600
A65: Fonte: Contratos de Gestão e Aditivos contidos no processo e Portal Transparência: saude.go.gov.br e Sistema SIOFINET - Portal.go.gov.br.
